[Event "*** Titled Tuesday 3|2 Blitz"]
[Site "Chess.com"]
[Date "2016.05.03"]
[Round "2"]
[White "severomorskij"]
[Black "Zlatan56"]
[Result "0-1"]
[WhiteElo "2590"]
[BlackElo "2570"]
[TimeControl "180+2"]
[EndTime "11:21:11 PDT"]
[Termination "Zlatan56 won by resignation"]

1. d4 {[%clk 0:03:01.9]} 1... Nf6 {[%clk 0:03:00.4]} 2. c4 {[%clk 0:03:01.9]}
2... g6 {[%clk 0:03:01.3]} 3. Nc3 {[%clk 0:03:02.2]} 3... Bg7 {[%clk 0:03:02.7]}
4. e4 {[%clk 0:03:02.9]} 4... O-O {[%clk 0:03:03.3]} 5. Bd3 {[%clk 0:03:04.1]}
5... Nc6 {[%clk 0:03:02.1]} 6. Nge2 {[%clk 0:03:04.7]} 6... e5 {[%clk
0:03:02.8]} 7. d5 {[%clk 0:03:05.6]} 7... Nd4 {[%clk 0:03:03.8]} 8. Nxd4 {[%clk
0:03:06.7]} 8... exd4 {[%clk 0:03:04.2]} 9. Ne2 {[%clk 0:03:08.2]} 9... c5
{[%clk 0:03:04.9]} 10. O-O {[%clk 0:03:08.6]} 10... d6 {[%clk 0:03:05.9]} 11.
Ng3 {[%clk 0:03:02.9]} 11... Ng4 {[%clk 0:03:01.8]} 12. f4 {[%clk 0:02:57.6]}
12... Qh4 {[%clk 0:02:57.6]} 13. h3 {[%clk 0:02:53.2]} 13... Qxg3 {[%clk
0:02:49.2]} 14. hxg4 {[%clk 0:02:54.1]} 14... Bxg4 {[%clk 0:02:49.2]} 15. Qc2
{[%clk 0:02:51.6]} 15... f5 {[%clk 0:02:46.1]} 16. exf5 {[%clk 0:02:16.4]} 16...
Bxf5 {[%clk 0:02:43.3]} 17. Bxf5 {[%clk 0:02:17.3]} 17... Rxf5 {[%clk
0:02:41.7]} 18. Qf2 {[%clk 0:02:15]} 18... Qxf2+ {[%clk 0:02:37.4]} 19. Rxf2
{[%clk 0:02:10.9]} 19... Re8 {[%clk 0:02:24.9]} 20. Bd2 {[%clk 0:02:10.9]} 20...
Rf7 {[%clk 0:02:12.9]} 21. Kf1 {[%clk 0:02:04]} 21... Rfe7 {[%clk 0:01:53.8]}
22. Re1 {[%clk 0:01:52.2]} 22... d3 {[%clk 0:01:44.2]} 23. Rxe7 {[%clk
0:01:44.8]} 23... Rxe7 {[%clk 0:01:46.1]} 24. b3 {[%clk 0:01:45]} 24... Bd4
{[%clk 0:01:45.8]} 25. Rf3 {[%clk 0:01:46]} 25... Re2 {[%clk 0:01:47.2]} 26.
Rxd3 {[%clk 0:01:46.8]} 26... Rf2+ {[%clk 0:01:47.7]} 27. Ke1 {[%clk 0:01:44.9]}
27... Rxg2 {[%clk 0:01:48.3]} 28. b4 {[%clk 0:01:22.5]} 28... h5 {[%clk
0:01:36]} 29. bxc5 {[%clk 0:01:20.8]} 29... Bxc5 {[%clk 0:01:36.8]} 30. a3
{[%clk 0:01:14.4]} 30... Kf7 {[%clk 0:01:33.7]} 31. Bb4 {[%clk 0:01:14.4]} 31...
b6 {[%clk 0:01:31.4]} 32. Bxc5 {[%clk 0:01:14.1]} 32... bxc5 {[%clk 0:01:24.5]}
33. Rb3 {[%clk 0:01:13.6]} 33... h4 {[%clk 0:01:15.8]} 34. Kf1 {[%clk 0:00:57]}
34... Rg4 {[%clk 0:01:16.3]} 35. Rb7+ {[%clk 0:00:50.6]} 35... Kf6 {[%clk
0:01:16.7]} 36. Rxa7 {[%clk 0:00:52.2]} 36... Rxf4+ {[%clk 0:01:17.6]} 37. Kg2
{[%clk 0:00:53.3]} 37... Rxc4 {[%clk 0:01:19.1]} 38. a4 {[%clk 0:00:49.5]} 38...
Ke5 {[%clk 0:01:19.4]} 39. a5 {[%clk 0:00:50.7]} 39... Kxd5 {[%clk 0:01:19.1]}
40. a6 {[%clk 0:00:50.7]} 40... Ra4 {[%clk 0:01:19.6]} 41. Ra8 {[%clk
0:00:51.7]} 41... g5 {[%clk 0:01:19.9]} 42. a7 {[%clk 0:00:51.4]} 42... g4
{[%clk 0:01:15.8]} 43. Kh2 {[%clk 0:00:50]} 43... Ra2+ {[%clk 0:01:16.4]} 44.
Kg1 {[%clk 0:00:47.6]} 44... g3 {[%clk 0:01:17.2]} 0-1

[Event "*** Titled Tuesday 3|2 Blitz"]
[Site "Chess.com"]
[Date "2016.05.03"]
[Round "2"]
[White "MinhGTrAn"]
[Black "jcibarra"]
[Result "1-0"]
[WhiteElo "2630"]
[BlackElo "2522"]
[TimeControl "180+2"]
[EndTime "11:21:12 PDT"]
[Termination "MinhGTrAn won by resignation"]

1. d4 {[%clk 0:03:01.9]} 1... Nf6 {[%clk 0:02:59.8]} 2. c4 {[%clk 0:03:02.2]}
2... d6 {[%clk 0:03:00.9]} 3. Nc3 {[%clk 0:03:00.7]} 3... e5 {[%clk 0:03:01.6]}
4. Nf3 {[%clk 0:02:59.4]} 4... e4 {[%clk 0:03:02.8]} 5. Nd2 {[%clk 0:02:57.2]}
5... Bf5 {[%clk 0:03:03.8]} 6. e3 {[%clk 0:02:56.4]} 6... c6 {[%clk 0:03:01.8]}
7. Be2 {[%clk 0:02:55.6]} 7... d5 {[%clk 0:03:02.6]} 8. Qb3 {[%clk 0:02:56.3]}
8... Qd7 {[%clk 0:03:03.2]} 9. O-O {[%clk 0:02:43]} 9... Bd6 {[%clk 0:03:02]}
10. f3 {[%clk 0:02:37.5]} 10... exf3 {[%clk 0:03:02.7]} 11. Bxf3 {[%clk
0:02:36]} 11... h5 {[%clk 0:02:51.3]} 12. cxd5 {[%clk 0:02:30.6]} 12... Ng4
{[%clk 0:02:49.5]} 13. h3 {[%clk 0:02:20.8]} 13... Bh2+ {[%clk 0:02:22.2]} 14.
Kh1 {[%clk 0:02:19.6]} 14... Bd3 {[%clk 0:02:15.9]} 15. Ne2 {[%clk 0:02:04.4]}
15... Ba6 {[%clk 0:02:09.6]} 16. Ne4 {[%clk 0:02:01.8]} 16... b6 {[%clk
0:01:57.9]} 17. dxc6 {[%clk 0:01:59.5]} 17... Nxc6 {[%clk 0:01:57.8]} 18. Bd2
{[%clk 0:01:35.6]} 18... Bb8 {[%clk 0:01:47.9]} 19. Rac1 {[%clk 0:01:30.5]}
19... Ne7 {[%clk 0:00:50]} 20. Ng5 {[%clk 0:01:26.6]} 20... Nf5 {[%clk
0:00:26.6]} 21. Qxf7+ {[%clk 0:01:22.9]} 21... Qxf7 {[%clk 0:00:27.1]} 22. Nxf7
{[%clk 0:01:13.2]} 22... Bxe2 {[%clk 0:00:28.1]} 23. Nxh8 {[%clk 0:01:10.1]}
23... Bxf1 {[%clk 0:00:21.5]} 24. hxg4 {[%clk 0:01:07.4]} 24... Ng3+ {[%clk
0:00:17.1]} 25. Kg1 {[%clk 0:01:07.1]} 25... Ba6 {[%clk 0:00:15.9]} 26. Bxa8
{[%clk 0:01:08]} 26... Ne2+ {[%clk 0:00:16.6]} 27. Kf2 {[%clk 0:01:08.9]} 27...
hxg4 {[%clk 0:00:16.2]} 28. Rc8+ {[%clk 0:01:04.3]} 28... Bxc8 {[%clk
0:00:16.3]} 29. Kxe2 {[%clk 0:01:06.2]} 29... Be6 {[%clk 0:00:13.5]} 30. b3
{[%clk 0:01:00.1]} 30... Ke7 {[%clk 0:00:11.3]} 31. Ng6+ {[%clk 0:01:00.1]} 1-0

[Event "*** Titled Tuesday 3|2 Blitz"]
[Site "Chess.com"]
[Date "2016.05.03"]
[Round "2"]
[White "swayamsm"]
[Black "D-Prawira"]
[Result "1-0"]
[WhiteElo "2515"]
[BlackElo "2204"]
[TimeControl "180+2"]
[EndTime "11:21:12 PDT"]
[Termination "swayamsm won by resignation"]

1. d4 {[%clk 0:03:01.9]} 1... Nf6 {[%clk 0:02:58.6]} 2. Nf3 {[%clk 0:03:00.2]}
2... g6 {[%clk 0:02:59.4]} 3. c4 {[%clk 0:03:02.1]} 3... Bg7 {[%clk 0:02:58.6]}
4. Nc3 {[%clk 0:03:04]} 4... d6 {[%clk 0:02:59.5]} 5. e4 {[%clk 0:03:04.2]} 5...
O-O {[%clk 0:03:00.4]} 6. Be2 {[%clk 0:03:05.7]} 6... e5 {[%clk 0:02:59.9]} 7.
O-O {[%clk 0:03:07.6]} 7... Nbd7 {[%clk 0:02:58.9]} 8. Re1 {[%clk 0:03:08]} 8...
c6 {[%clk 0:02:58.4]} 9. Bf1 {[%clk 0:03:09.2]} 9... Re8 {[%clk 0:02:55.6]} 10.
d5 {[%clk 0:03:04.3]} 10... cxd5 {[%clk 0:02:54.8]} 11. cxd5 {[%clk 0:02:44.4]}
11... a5 {[%clk 0:02:47.4]} 12. Nb5 {[%clk 0:02:37.4]} 12... Nc5 {[%clk
0:02:44.6]} 13. Nd2 {[%clk 0:02:32.2]} 13... b6 {[%clk 0:02:37.7]} 14. Nc4
{[%clk 0:02:25.8]} 14... Bf8 {[%clk 0:02:30.7]} 15. f3 {[%clk 0:02:25]} 15...
Ba6 {[%clk 0:02:29.7]} 16. a4 {[%clk 0:02:21.7]} 16... Bxb5 {[%clk 0:02:30.4]}
17. axb5 {[%clk 0:02:23.6]} 17... Qc7 {[%clk 0:02:26.5]} 18. Be3 {[%clk
0:02:24.9]} 18... Nfd7 {[%clk 0:02:21.4]} 19. Ra3 {[%clk 0:02:26.2]} 19... Bg7
{[%clk 0:02:13.3]} 20. Qd2 {[%clk 0:02:26.7]} 20... f5 {[%clk 0:02:08.4]} 21.
exf5 {[%clk 0:02:25.4]} 21... gxf5 {[%clk 0:02:08.9]} 22. Kh1 {[%clk 0:02:17.3]}
22... f4 {[%clk 0:01:51.9]} 23. Bf2 {[%clk 0:02:16.2]} 23... Nf6 {[%clk
0:01:50.5]} 24. Bd3 {[%clk 0:02:12.4]} 24... Bh6 {[%clk 0:01:44.4]} 25. Bf5
{[%clk 0:02:09.6]} 25... Kh8 {[%clk 0:01:43.4]} 26. Bh4 {[%clk 0:02:08.2]} 26...
Rf8 {[%clk 0:01:40.1]} 27. Rc3 {[%clk 0:02:03.9]} 27... a4 {[%clk 0:01:37.9]}
28. Qc2 {[%clk 0:01:53.4]} 28... Nh5 {[%clk 0:01:26.7]} 29. Nd2 {[%clk 0:01:51]}
29... Qg7 {[%clk 0:01:22.2]} 30. Ne4 {[%clk 0:01:45.7]} 30... Nxe4 {[%clk
0:01:04.8]} 31. Bxe4 {[%clk 0:01:47.6]} 31... Rf7 {[%clk 0:01:01.6]} 32. Rc8+
{[%clk 0:01:47.9]} 32... Rxc8 {[%clk 0:01:00.5]} 33. Qxc8+ {[%clk 0:01:49.8]}
33... Rf8 {[%clk 0:01:01.5]} 34. Qe6 {[%clk 0:01:49.8]} 34... Rg8 {[%clk
0:01:02.1]} 35. Re2 {[%clk 0:01:49.3]} 35... Bg5 {[%clk 0:00:56.9]} 36. Bf2
{[%clk 0:01:38.7]} 36... Bf6 {[%clk 0:00:48.2]} 37. Be1 {[%clk 0:01:39.3]} 37...
Qh6 {[%clk 0:00:45.4]} 38. Kg1 {[%clk 0:01:32.1]} 38... Rd8 {[%clk 0:00:37.8]}
39. Rc2 {[%clk 0:01:32.9]} 39... Qg5 {[%clk 0:00:31.8]} 40. Rc7 {[%clk 0:01:33]}
40... Ng7 {[%clk 0:00:30.9]} 41. Qh3 {[%clk 0:01:26.6]} 41... Nh5 {[%clk
0:00:21]} 42. Rxh7+ {[%clk 0:01:26]} 1-0

[Event "*** Titled Tuesday 3|2 Blitz"]
[Site "Chess.com"]
[Date "2016.05.03"]
[Round "2"]
[White "AleksandrNevski"]
[Black "Tesla17"]
[Result "1-0"]
[WhiteElo "2411"]
[BlackElo "2260"]
[TimeControl "180+2"]
[EndTime "11:21:45 PDT"]
[Termination "AleksandrNevski won by resignation"]

1. e4 {[%clk 0:03:01.6]} 1... c5 {[%clk 0:03:00.1]} 2. Nf3 {[%clk 0:03:02.4]}
2... g6 {[%clk 0:03:00.5]} 3. g3 {[%clk 0:02:58.3]} 3... Bg7 {[%clk 0:03:00.7]}
4. Bg2 {[%clk 0:03:00.2]} 4... Nc6 {[%clk 0:03:00.6]} 5. O-O {[%clk 0:03:01.9]}
5... e6 {[%clk 0:03:01.9]} 6. c3 {[%clk 0:03:03]} 6... Nge7 {[%clk 0:03:00.4]}
7. d4 {[%clk 0:03:04.2]} 7... d6 {[%clk 0:02:58.9]} 8. dxc5 {[%clk 0:02:59.9]}
8... dxc5 {[%clk 0:02:59.3]} 9. Qxd8+ {[%clk 0:03:01.6]} 9... Nxd8 {[%clk
0:02:56.1]} 10. a4 {[%clk 0:02:59.4]} 10... Ndc6 {[%clk 0:02:51.4]} 11. a5
{[%clk 0:03:00]} 11... Rb8 {[%clk 0:02:43.9]} 12. Bf4 {[%clk 0:02:50.5]} 12...
e5 {[%clk 0:02:44]} 13. Be3 {[%clk 0:02:52.1]} 13... b6 {[%clk 0:02:44.4]} 14.
axb6 {[%clk 0:02:53.7]} 14... axb6 {[%clk 0:02:46.1]} 15. Na3 {[%clk 0:02:53.5]}
15... O-O {[%clk 0:02:38.7]} 16. Nb5 {[%clk 0:02:53.6]} 16... Be6 {[%clk
0:02:34.2]} 17. Nd2 {[%clk 0:02:49.8]} 17... Na5 {[%clk 0:02:28]} 18. Nc7 {[%clk
0:02:37.4]} 18... Bd7 {[%clk 0:01:57.9]} 19. Rfd1 {[%clk 0:02:34.7]} 19... Rfc8
{[%clk 0:01:53.7]} 20. Nd5 {[%clk 0:02:31.4]} 20... Nxd5 {[%clk 0:01:51.3]} 21.
exd5 {[%clk 0:02:33.3]} 21... f5 {[%clk 0:01:52.7]} 22. Bf1 {[%clk 0:02:28.8]}
22... c4 {[%clk 0:01:22]} 23. Bxb6 {[%clk 0:02:18.2]} 23... Nb3 {[%clk
0:01:12.3]} 24. Nxb3 {[%clk 0:01:38.7]} 24... Rxb6 {[%clk 0:01:12.4]} 25. Na5
{[%clk 0:01:36]} 25... Rxb2 {[%clk 0:01:09]} 26. Nxc4 {[%clk 0:01:35.3]} 26...
Rc2 {[%clk 0:01:09.2]} 27. Nb6 {[%clk 0:01:33.3]} 27... Rd8 {[%clk 0:01:06.3]}
28. c4 {[%clk 0:01:25.9]} 28... e4 {[%clk 0:01:01.5]} 29. Rac1 {[%clk
0:01:16.9]} 29... Rxc1 {[%clk 0:00:55.9]} 30. Rxc1 {[%clk 0:01:18.8]} 30... Bd4
{[%clk 0:00:55.9]} 31. c5 {[%clk 0:01:14.5]} 31... e3 {[%clk 0:00:51.3]} 32.
Nxd7 {[%clk 0:00:45.5]} 32... Rxd7 {[%clk 0:00:41.4]} 33. c6 {[%clk 0:00:45.6]}
33... exf2+ {[%clk 0:00:32.5]} 34. Kg2 {[%clk 0:00:45.9]} 34... Rd8 {[%clk
0:00:21.6]} 35. c7 {[%clk 0:00:45.8]} 35... Rc8 {[%clk 0:00:21.9]} 36. Ba6
{[%clk 0:00:41.8]} 1-0

[Event "*** Titled Tuesday 3|2 Blitz"]
[Site "Chess.com"]
[Date "2016.05.03"]
[Round "2"]
[White "ShimanovAlex"]
[Black "vovkcoach"]
[Result "1/2-1/2"]
[WhiteElo "2641"]
[BlackElo "2521"]
[TimeControl "180+2"]
[EndTime "11:21:46 PDT"]
[Termination "Game drawn by repetition"]

1. d4 {[%clk 0:03:01.9]} 1... Nf6 {[%clk 0:02:40.5]} 2. Nf3 {[%clk 0:03:02.1]}
2... e6 {[%clk 0:02:40.7]} 3. Bf4 {[%clk 0:03:02.4]} 3... b6 {[%clk 0:02:40.6]}
4. e3 {[%clk 0:03:02.3]} 4... Bb7 {[%clk 0:02:41.6]} 5. Nbd2 {[%clk 0:03:03.1]}
5... Be7 {[%clk 0:02:38.1]} 6. Bd3 {[%clk 0:03:03.1]} 6... Nh5 {[%clk
0:02:33.6]} 7. O-O {[%clk 0:03:02.8]} 7... Nxf4 {[%clk 0:02:32]} 8. exf4 {[%clk
0:03:03.6]} 8... O-O {[%clk 0:02:33.3]} 9. Qe2 {[%clk 0:02:58.3]} 9... d6 {[%clk
0:02:32.9]} 10. Be4 {[%clk 0:02:56.5]} 10... Bxe4 {[%clk 0:02:32.8]} 11. Nxe4
{[%clk 0:02:57.7]} 11... Nd7 {[%clk 0:02:34.7]} 12. a4 {[%clk 0:02:57.7]} 12...
d5 {[%clk 0:02:34.2]} 13. Ned2 {[%clk 0:02:49]} 13... Bd6 {[%clk 0:02:29.9]} 14.
g3 {[%clk 0:02:49.3]} 14... c5 {[%clk 0:02:26.6]} 15. c3 {[%clk 0:02:50.2]}
15... Qc7 {[%clk 0:02:15.7]} 16. Rfd1 {[%clk 0:02:49.2]} 16... a6 {[%clk
0:02:07.8]} 17. h4 {[%clk 0:02:47.7]} 17... c4 {[%clk 0:02:06.9]} 18. Ne5 {[%clk
0:02:46.8]} 18... Nxe5 {[%clk 0:02:05]} 19. fxe5 {[%clk 0:02:47.7]} 19... Be7
{[%clk 0:02:05.8]} 20. Nf3 {[%clk 0:02:34.9]} 20... b5 {[%clk 0:02:06.6]} 21.
Qc2 {[%clk 0:02:36.1]} 21... h6 {[%clk 0:01:58.1]} 22. axb5 {[%clk 0:02:36]}
22... axb5 {[%clk 0:01:58.5]} 23. b4 {[%clk 0:02:36]} 23... cxb3 {[%clk
0:01:57.4]} 24. Qxb3 {[%clk 0:02:36.8]} 24... Qc4 {[%clk 0:01:58.9]} 25. Qxc4
{[%clk 0:02:37.2]} 25... bxc4 {[%clk 0:02:00.8]} 26. Rdb1 {[%clk 0:02:34.7]}
26... Rxa1 {[%clk 0:02:00.3]} 27. Rxa1 {[%clk 0:02:35.5]} 27... Rb8 {[%clk
0:02:02.2]} 28. Ra7 {[%clk 0:02:17.6]} 28... Kf8 {[%clk 0:02:02.1]} 29. Kf1
{[%clk 0:02:16.9]} 29... Ke8 {[%clk 0:02:01.5]} 30. Ng1 {[%clk 0:02:03.8]} 30...
Rb1+ {[%clk 0:01:44.9]} 31. Kg2 {[%clk 0:02:04.5]} 31... g5 {[%clk 0:01:46.8]}
32. hxg5 {[%clk 0:02:04.7]} 32... hxg5 {[%clk 0:01:46.6]} 33. g4 {[%clk
0:02:01.8]} 33... Rb3 {[%clk 0:01:32.6]} 34. Ra8+ {[%clk 0:01:59.4]} 34... Kd7
{[%clk 0:01:30.9]} 35. Ra7+ {[%clk 0:02:00.4]} 35... Kd8 {[%clk 0:01:31.7]} 36.
Ne2 {[%clk 0:01:58]} 36... Ra3 {[%clk 0:01:25.4]} 37. Rxa3 {[%clk 0:01:57.6]}
37... Bxa3 {[%clk 0:01:27.3]} 38. Kf3 {[%clk 0:01:54.5]} 38... Kc7 {[%clk
0:01:25.8]} 39. Ke3 {[%clk 0:01:55.6]} 39... Kb6 {[%clk 0:01:25.8]} 40. Kd2
{[%clk 0:01:56.9]} 40... Kb5 {[%clk 0:01:22.8]} 41. Kc2 {[%clk 0:01:58]} 41...
Be7 {[%clk 0:01:18.1]} 42. Ng3 {[%clk 0:01:55.3]} 42... f6 {[%clk 0:01:16]} 43.
Nh5 {[%clk 0:01:46.7]} 43... fxe5 {[%clk 0:01:16]} 44. dxe5 {[%clk 0:01:48.6]}
44... Kc6 {[%clk 0:01:15.6]} 45. f4 {[%clk 0:01:45.5]} 45... gxf4 {[%clk
0:01:15.9]} 46. Nxf4 {[%clk 0:01:47.4]} 46... Kd7 {[%clk 0:01:16.9]} 47. Ne2
{[%clk 0:01:47.6]} 47... Bg5 {[%clk 0:01:11.4]} 48. Nd4 {[%clk 0:01:48.5]} 48...
Be3 {[%clk 0:01:04.1]} 49. Nf3 {[%clk 0:01:49.5]} 49... Ke7 {[%clk 0:01:05.3]}
50. Kd1 {[%clk 0:01:50.2]} 50... Kd7 {[%clk 0:01:01.7]} 51. Kc2 {[%clk
0:01:51.2]} 51... Kc6 {[%clk 0:00:57.5]} 52. Kd1 {[%clk 0:01:48.7]} 52... Bf4
{[%clk 0:00:56.2]} 53. Kc2 {[%clk 0:01:49.2]} 53... Kd7 {[%clk 0:00:57.3]} 54.
Kd1 {[%clk 0:01:49.9]} 54... Ke7 {[%clk 0:00:52.5]} 55. Kc2 {[%clk 0:01:50.7]}
55... Kd7 {[%clk 0:00:42.5]} 56. Kd1 {[%clk 0:01:51.3]} 56... Ke7 {[%clk
0:00:43.8]} 57. Kc2 {[%clk 0:01:52.2]} 57... Kd7 {[%clk 0:00:45.1]} 1/2-1/2

[Event "*** Titled Tuesday 3|2 Blitz"]
[Site "Chess.com"]
[Date "2016.05.03"]
[Round "2"]
[White "Saitama_Hero"]
[Black "Journey_to_GrandMaster_YT"]
[Result "0-1"]
[WhiteElo "2150"]
[BlackElo "2336"]
[TimeControl "180+2"]
[EndTime "11:21:49 PDT"]
[Termination "Journey_to_GrandMaster_YT won by resignation"]

1. d4 {[%clk 0:03:01.9]} 1... d6 {[%clk 0:02:57.9]} 2. e4 {[%clk 0:03:02.1]}
2... Nf6 {[%clk 0:02:58.6]} 3. Nc3 {[%clk 0:03:04]} 3... e5 {[%clk 0:02:59.8]}
4. Nf3 {[%clk 0:03:03.5]} 4... Nbd7 {[%clk 0:03:00.5]} 5. Bc4 {[%clk 0:03:04.7]}
5... Be7 {[%clk 0:03:01.2]} 6. O-O {[%clk 0:03:06]} 6... O-O {[%clk 0:03:01.2]}
7. h3 {[%clk 0:03:06.8]} 7... c6 {[%clk 0:03:02.4]} 8. a4 {[%clk 0:03:05.4]}
8... Nxe4 {[%clk 0:03:03.2]} 9. Nxe4 {[%clk 0:03:05.5]} 9... d5 {[%clk
0:03:04.4]} 10. Ng3 {[%clk 0:02:45.1]} 10... dxc4 {[%clk 0:03:04.1]} 11. dxe5
{[%clk 0:02:44.6]} 11... Nc5 {[%clk 0:03:00.5]} 12. Qe2 {[%clk 0:02:41]} 12...
Be6 {[%clk 0:03:01.2]} 13. Be3 {[%clk 0:02:39.8]} 13... h6 {[%clk 0:02:43.8]}
14. Rfd1 {[%clk 0:02:36.1]} 14... Qc7 {[%clk 0:02:44.3]} 15. Bd4 {[%clk
0:02:34.4]} 15... Rad8 {[%clk 0:02:41.7]} 16. Qe3 {[%clk 0:02:34.7]} 16... b6
{[%clk 0:02:40.8]} 17. a5 {[%clk 0:02:33]} 17... Rd7 {[%clk 0:02:39.8]} 18. axb6
{[%clk 0:02:32.5]} 18... axb6 {[%clk 0:02:41]} 19. Ne4 {[%clk 0:02:13.5]} 19...
Nxe4 {[%clk 0:02:33.8]} 20. Qxe4 {[%clk 0:02:15.4]} 20... c5 {[%clk 0:02:31.9]}
21. Be3 {[%clk 0:02:14.9]} 21... Rfd8 {[%clk 0:02:31.7]} 22. Rxd7 {[%clk
0:02:15.3]} 22... Qxd7 {[%clk 0:02:32.5]} 23. Ra6 {[%clk 0:02:10.4]} 23... Bd5
{[%clk 0:02:32.5]} 24. Qf4 {[%clk 0:02:10]} 24... Qb7 {[%clk 0:02:25]} 25. Ra1
{[%clk 0:02:04.5]} 25... Ra8 {[%clk 0:02:13.7]} 26. Rd1 {[%clk 0:01:59.9]} 26...
Ra2 {[%clk 0:02:10.3]} 27. Nh4 {[%clk 0:01:45.8]} 27... Bxh4 {[%clk 0:01:42.8]}
28. Qxh4 {[%clk 0:01:45.4]} 28... Bxg2 {[%clk 0:01:31.7]} 29. Bxh6 {[%clk
0:01:37.7]} 29... gxh6 {[%clk 0:01:20.9]} 30. Qg3+ {[%clk 0:01:05.1]} 30... Kh7
{[%clk 0:01:18]} 31. Qxg2 {[%clk 0:01:07]} 31... Qxg2+ {[%clk 0:01:16.5]} 32.
Kxg2 {[%clk 0:01:08.9]} 32... Rxb2 {[%clk 0:01:18.1]} 33. Rd6 {[%clk 0:01:10.8]}
33... b5 {[%clk 0:01:16.4]} 34. Rd7 {[%clk 0:00:46.7]} 34... Kg6 {[%clk
0:01:07.3]} 35. Kg3 {[%clk 0:00:48.6]} 35... Rxc2 {[%clk 0:01:08]} 36. f4 {[%clk
0:00:50.1]} 36... b4 {[%clk 0:01:05.4]} 37. Kg4 {[%clk 0:00:41.7]} 37... h5+
{[%clk 0:01:06.3]} 38. Kf3 {[%clk 0:00:41.4]} 38... b3 {[%clk 0:01:05.6]} 39.
Ke4 {[%clk 0:00:42.3]} 39... b2 {[%clk 0:01:03.8]} 40. f5+ {[%clk 0:00:41.7]}
40... Kg7 {[%clk 0:01:04.8]} 41. Rb7 {[%clk 0:00:42.2]} 41... c3 {[%clk
0:01:05.2]} 42. e6 {[%clk 0:00:41.2]} 42... Rc1 {[%clk 0:01:05.6]} 43. e7 {[%clk
0:00:33.9]} 43... Re1+ {[%clk 0:01:05]} 0-1

[Event "*** Titled Tuesday 3|2 Blitz"]
[Site "Chess.com"]
[Date "2016.05.03"]
[Round "2"]
[White "maciek_92"]
[Black "smurfo"]
[Result "1-0"]
[WhiteElo "2585"]
[BlackElo "2543"]
[TimeControl "180+2"]
[EndTime "11:22:05 PDT"]
[Termination "maciek_92 won by checkmate"]

1. c4 {[%clk 0:03:01.9]} 1... f5 {[%clk 0:02:58.9]} 2. g3 {[%clk 0:03:01.7]}
2... Nf6 {[%clk 0:02:59.1]} 3. Bg2 {[%clk 0:03:03.1]} 3... e6 {[%clk 0:03:00.6]}
4. Nf3 {[%clk 0:03:00.8]} 4... c6 {[%clk 0:03:00.8]} 5. O-O {[%clk 0:03:01.2]}
5... d5 {[%clk 0:03:01.9]} 6. b3 {[%clk 0:02:53.5]} 6... Bd6 {[%clk 0:03:01.4]}
7. Bb2 {[%clk 0:02:54.6]} 7... O-O {[%clk 0:03:02.1]} 8. d3 {[%clk 0:02:54]}
8... Nbd7 {[%clk 0:02:53.6]} 9. Nc3 {[%clk 0:02:54]} 9... f4 {[%clk 0:02:45.4]}
10. Rc1 {[%clk 0:02:42.8]} 10... Qe8 {[%clk 0:02:34.1]} 11. e4 {[%clk
0:02:07.8]} 11... fxe3 {[%clk 0:02:05.4]} 12. fxe3 {[%clk 0:02:09.7]} 12... Qh5
{[%clk 0:02:05.4]} 13. Qe2 {[%clk 0:02:09.1]} 13... Ng4 {[%clk 0:02:00]} 14. d4
{[%clk 0:02:08.1]} 14... Qh6 {[%clk 0:01:42.6]} 15. Rce1 {[%clk 0:02:03]} 15...
Ndf6 {[%clk 0:01:39.1]} 16. e4 {[%clk 0:01:50.8]} 16... Nxh2 {[%clk 0:01:25.8]}
17. Nxh2 {[%clk 0:01:46.1]} 17... Bxg3 {[%clk 0:01:26.2]} 18. Bf3 {[%clk
0:01:35.5]} 18... Bxe1 {[%clk 0:01:05.5]} 19. Rxe1 {[%clk 0:01:32.4]} 19... dxe4
{[%clk 0:00:54]} 20. Nxe4 {[%clk 0:01:32.1]} 20... Nxe4 {[%clk 0:00:52]} 21.
Bxe4 {[%clk 0:01:32.6]} 21... Bd7 {[%clk 0:00:49]} 22. Ng4 {[%clk 0:01:17.4]}
22... Qh4 {[%clk 0:00:47.1]} 23. Ne5 {[%clk 0:00:52.4]} 23... Rf4 {[%clk
0:00:46.3]} 24. Bg2 {[%clk 0:00:34.4]} 24... Raf8 {[%clk 0:00:40.3]} 25. Nxd7
{[%clk 0:00:32.9]} 25... Rf2 {[%clk 0:00:39.5]} 26. Qxe6+ {[%clk 0:00:25.3]}
26... Kh8 {[%clk 0:00:40.1]} 27. Nxf8 {[%clk 0:00:26.4]} 27... Rxb2 {[%clk
0:00:33.1]} 28. Qe3 {[%clk 0:00:15.6]} 28... Qg4 {[%clk 0:00:26.2]} 29. Qf3
{[%clk 0:00:11]} 29... Qxd4+ {[%clk 0:00:25.4]} 30. Kf1 {[%clk 0:00:10.7]} 30...
Rxa2 {[%clk 0:00:17.6]} 31. Ng6+ {[%clk 0:00:09.4]} 31... hxg6 {[%clk
0:00:15.1]} 32. Re8+ {[%clk 0:00:11]} 32... Kh7 {[%clk 0:00:16.5]} 33. Qh3+
{[%clk 0:00:12.6]} 33... Qh4 {[%clk 0:00:17.5]} 34. Qxh4# {[%clk 0:00:14]} 1-0